fUSD/lending_fUSD_20260228
["ID","MTS","AMOUNT","RATE_DAILY","PERIOD"]
[406854774,1772237447952,-813.0,0.00017917,2]
[406854775,1772237447963,-253.46872602,0.00017933,2]
[406854776,1772237447973,-168.0,0.00017967,2]
[406854777,1772237447983,-813.0,0.00017972,2]
[406854778,1772237447995,-2026.47664966,0.0001799,2]
[406854779,1772237448005,-151.0,0.00017997,2]
[406854780,1772237448016,-300.0,0.00017999,2]
[406854781,1772237448027,-300.0,0.00017999,2]
[406854782,1772237448039,-286.61762734,0.00017999,2]
[406854783,1772237448053,-500.0,0.00017999,2]
[406854784,1772237448065,-187.70521173,0.00017999,2]
[406854785,1772237448075,-750.0,0.00017999,2]
[406854786,1772237448085,-750.0,0.00017999,2]
[406854787,1772237448095,-750.0,0.00017999,2]
[406854788,1772237448105,-750.0,0.00017999,2]
[406854789,1772237448115,-750.0,0.00017999,2]
[406854790,1772237448125,-750.0,0.00017999,2]
[406854791,1772237448136,-750.0,0.00017999,2]
[406854792,1772237448148,-750.0,0.00017999,2]
[406854793,1772237448160,-750.0,0.00017999,2]
[406854794,1772237448171,-750.0,0.00017999,2]
[406854795,1772237448183,-750.0,0.00017999,2]
[406854796,1772237448193,-750.0,0.00017999,2]
[406854797,1772237448204,-750.0,0.00017999,2]
[406854798,1772237448214,-194.04859862,0.00017999,2]
[406854799,1772237448225,-500.0,0.00017999,2]
[406854800,1772237448236,-500.0,0.00017999,2]
[406854801,1772237448246,-500.0,0.00017999,2]
[406854802,1772237448257,-500.0,0.00017999,2]
[406854803,1772237448267,-500.0,0.00017999,2]
[406854804,1772237448278,-500.0,0.00017999,2]
[406854805,1772237448289,-500.0,0.00017999,2]
[406854806,1772237448299,-500.0,0.00017999,2]
[406854807,1772237448311,-500.0,0.00017999,2]
[406854808,1772237448322,-500.0,0.00017999,2]
[406854809,1772237448333,-522.57762627,0.00017999,2]
[406854810,1772237448344,-500.0,0.00017999,2]
[406854811,1772237448355,-500.0,0.00017999,2]
[406854812,1772237448366,-500.0,0.00017999,2]
[406854813,1772237448378,-500.0,0.00017999,2]
[406854814,1772237448390,-500.0,0.00017999,2]
[406854815,1772237448401,-492.57649127,0.00017999,2]
[406854816,1772237448412,-621.22,0.00017999,2]
[406854817,1772237448423,-621.22,0.00017999,2]
[406854818,1772237448434,-621.22,0.00017999,2]
[406854819,1772237448445,-621.22,0.00017999,2]
[406854820,1772237448456,-621.22,0.00017999,2]
[406854821,1772237448467,-621.22,0.00017999,2]
[406854822,1772237448479,-621.22,0.00017999,2]
[406854823,1772237448490,-621.22,0.00017999,2]
[406854824,1772237448500,-621.22,0.00017999,2]
[406854825,1772237448511,-621.22,0.00017999,2]
[406854826,1772237448521,-621.22,0.00017999,2]
[406854827,1772237448532,-621.22,0.00017999,2]
[406854828,1772237448543,-621.45282882,0.00017999,2]
[406854829,1772237448554,-500.0,0.00017999,2]
[406854830,1772237448565,-500.0,0.00017999,2]
[406854831,1772237448575,-500.0,0.00017999,2]
[406854832,1772237448586,-173.81708552,0.00017999,2]
[406854833,1772237448597,-261090.78197144,0.00018,2]
[406854834,1772237448607,-2043503.86503292,0.00018,2]
[406854835,1772237448618,-1195.98056586,0.00018,2]
[406854836,1772237448629,-200.0,0.00018,2]
[406854837,1772237448639,-2934255.03945636,0.00018,2]
[406854838,1772237448738,-531.61205767,0.00018,2]
[406854839,1772237448751,-603.22941727,0.00018,2]
[406854840,1772237448763,-981.56,0.00018,2]
[406854841,1772237448777,-67999.99999999,0.00018,2]
[406854842,1772237448862,-2538.79789295,0.000109,2]
[406854843,1772237448874,-4757.69741975,0.000179,2]
[406854844,1772237448886,-1577.37287904,0.00018,2]
[406854845,1772237448911,-408.758548,8.676e-05,2]
[406854846,1772237448922,-1139.25276013,0.00013424,2]
[406854847,1772237448935,-515.98869187,0.00018,2]
[406854848,1772237448972,-1103.60566464,0.00013424,2]
[406854849,1772237449143,-8564.39433527,0.00018,2]
[406854850,1772237449159,-597.11126771,0.00018,2]
[406854852,1772237529283,1400.0,6.8e-05,2]
[406854853,1772237531367,2900.0,6.9e-05,2]
[406854854,1772237533463,4400.0,7e-05,2]
[406854855,1772237616162,-150.0,7.099e-05,2]
[406854856,1772237616190,-1107.76913408,7.099e-05,2]
[406854857,1772237616223,-481.18217939,7.099e-05,2]
[406854858,1772237616980,-7822.11737306,7.1e-05,2]
[406854859,1772237617062,-10000.01,7.1e-05,2]
[406854860,1772237617292,-10000.01,7.1e-05,2]
[406854861,1772237617520,-10000.01,7.1e-05,2]
[406854862,1772237617794,-10000.01,7.1e-05,2]
[406854863,1772237618057,-10000.01,7.1e-05,2]
[406854864,1772237618344,-10000.01,7.1e-05,2]
[406854865,1772237618602,-10000.01,7.1e-05,2]
[406854866,1772237621310,-10000.01,7.1e-05,2]
[406854867,1772237621674,-10000.01,7.1e-05,2]
[406854868,1772237627331,-10000.01,7.1e-05,2]
[406854869,1772237630199,-10000.01,7.1e-05,2]
[406854870,1772237633220,-10000.01,7.1e-05,2]
[406854871,1772237633371,-10000.01,7.1e-05,2]
[406854872,1772237636480,-1445.09091196,7e-05,2]
[406854873,1772237636509,-2796.15063414,7e-05,2]
[406854874,1772237636557,-1517.5269078,7e-05,2]
[406854875,1772237636788,-2446.1682548,7e-05,2]
[406854876,1772237636827,-5107.6734904,7e-05,2]
[406854877,1772237636890,-2121.14326797,7e-05,2]
[406854878,1772237849482,283.67404627,7e-05,2]
[406854879,1772237849680,423.12496681,7e-05,2]
[406854880,1772237849745,543.63419118,7e-05,2]
[406854881,1772237948931,163.15356561,7e-05,2]
[406854882,1772237948981,177.6669433,7e-05,2]
[406854883,1772237963736,10000.01,7e-05,2]
[406854884,1772237963764,10000.01,7e-05,2]
[406854885,1772237963790,10000.01,7e-05,2]
[406854886,1772237963819,10000.01,7e-05,2]
[406854887,1772237963848,10000.01,7e-05,2]
[406854888,1772237963876,10000.01,7e-05,2]
[406854889,1772237963905,10000.01,7e-05,2]
[406854890,1772238120916,-1326.88,6.86e-05,2]
[406854891,1772238120945,-153.478,6.86e-05,2]
[406854894,1772238423668,10000.01,6.9e-05,2]
[406854895,1772238423698,10000.01,6.9e-05,2]
[406854896,1772238423727,10000.01,6.9e-05,2]
[406854897,1772238423756,10000.01,6.9e-05,2]
[406854898,1772238423783,10000.01,6.9e-05,2]
[406854899,1772238423813,10000.01,6.9e-05,2]
[406854900,1772238423843,10000.01,6.9e-05,2]
[406854901,1772238423870,10000.01,6.9e-05,2]
[406854902,1772238423897,10000.01,6.9e-05,2]
[406854903,1772238423925,10000.01,6.9e-05,2]
[406854904,1772238424290,-1903.53,6.9e-05,2]
[406854905,1772238425435,-5000.01,6.9e-05,2]
[406854906,1772238425731,-5000.01,6.9e-05,2]
[406854907,1772238425920,-5000.01,6.9e-05,2]
[406854908,1772238426086,-5000.01,6.9e-05,2]
[406854909,1772238426202,-5000.01,6.9e-05,2]
[406854910,1772238426318,-5000.01,6.9e-05,2]
[406854911,1772238426441,-5000.01,6.9e-05,2]
[406854912,1772238426560,-5000.01,6.9e-05,2]
[406854913,1772238426673,-5000.01,6.9e-05,2]
[406854914,1772238430111,-5000.01,6.9e-05,2]
[406854915,1772238430258,-5000.01,6.9e-05,2]
[406854916,1772238430373,-5000.01,6.9e-05,2]
[406854917,1772238430471,-5000.01,6.9e-05,2]
[406854918,1772238430605,-5000.01,6.9e-05,2]
[406854919,1772238430725,-5000.01,6.9e-05,2]
[406854920,1772238430835,-5000.01,6.9e-05,2]
[406854921,1772238430937,-5000.01,6.9e-05,2]
[406854922,1772238431083,-5000.01,6.9e-05,2]
[406854923,1772238431365,-5000.01,6.9e-05,2]
[406854924,1772238433306,-5000.01,6.9e-05,2]
[406854925,1772238433455,-5000.01,6.9e-05,2]
[406854926,1772238433556,-5000.01,6.9e-05,2]
[406854927,1772238433674,-5000.01,6.9e-05,2]
[406854928,1772238433806,-5000.01,6.9e-05,2]
[406854929,1772238434040,-5000.01,6.9e-05,2]
[406854930,1772238434140,-5000.01,6.9e-05,2]
[406854931,1772238434266,-5000.01,6.9e-05,2]
[406854932,1772238434396,-5000.01,6.9e-05,2]
[406854933,1772238434501,-5000.01,6.9e-05,2]
[406854934,1772238435207,-8408.75628683,6.9e-05,2]
[406854935,1772238435321,-10000.01,6.9e-05,2]
[406854936,1772238435455,-10000.01,6.9e-05,2]
[406854937,1772238435567,-10000.01,6.9e-05,2]
[406854938,1772238435730,-10000.01,6.9e-05,2]
[406854939,1772238435866,-10000.01,6.9e-05,2]
[406854940,1772238436018,-10000.01,6.9e-05,2]
[406854941,1772238436144,-10000.01,6.9e-05,2]
[406854942,1772238436405,-10000.01,6.9e-05,2]
[406854943,1772238436538,-10000.01,6.9e-05,2]
[406854944,1772238439168,-1300.0,6.8e-05,2]
[406854945,1772238439208,-2400.01,6.9e-05,2]
[406854946,1772238439368,-5000.01,6.9e-05,2]
[406854947,1772238439466,-5000.01,6.9e-05,2]
[406854948,1772238439573,-5000.01,6.9e-05,2]
[406854949,1772238439685,-5000.01,6.9e-05,2]
[406854950,1772238439790,-5000.01,6.9e-05,2]
[406854951,1772238441475,-10000.01,6.9e-05,2]
[406854952,1772238441603,-10000.01,6.9e-05,2]
[406854953,1772238441727,-10000.01,6.9e-05,2]
[406854954,1772238441825,-10000.01,6.9e-05,2]
[406854955,1772238441953,-10000.01,6.9e-05,2]
[406854956,1772238442097,-10000.01,6.9e-05,2]
[406854957,1772238442232,-10000.01,6.9e-05,2]
[406854958,1772238442382,-10000.01,6.9e-05,2]
[406854959,1772238442527,-10000.01,6.9e-05,2]
[406854960,1772238442673,-10000.01,6.9e-05,2]
[406854961,1772238445464,-5000.01,6.9e-05,2]
[406854962,1772238445477,-5000.01,6.9e-05,2]
[406854963,1772238445500,-5000.01,6.9e-05,2]
[406854964,1772238445585,-5000.01,6.9e-05,2]
[406854965,1772238445704,-5000.01,6.9e-05,2]
[406854966,1772238445833,-5000.01,6.9e-05,2]
[406854967,1772238448565,525.33,3.866e-05,2]
[406854968,1772238448781,525.33,4.033e-05,2]
[406854969,1772238448984,525.33,4.199e-05,2]
[406854970,1772238449194,525.33,4.366e-05,2]
[406854971,1772238449401,525.33,4.532e-05,2]
[406854972,1772238449839,525.33,4.699e-05,2]
[406854973,1772238450037,525.33,4.865e-05,2]
[406854974,1772238450244,525.33,5.032e-05,2]
[406854975,1772238450441,525.33,5.198e-05,2]
[406854976,1772238450648,525.33,5.365e-05,2]
[406854977,1772238450863,525.33,5.531e-05,2]
[406854978,1772238451089,525.33,5.697e-05,2]
[406854979,1772238451311,525.33,5.864e-05,2]
[406854980,1772238451521,525.33,6.03e-05,2]
[406854981,1772238451741,525.33,6.197e-05,2]
[406854982,1772238451940,525.33,6.363e-05,2]
[406854983,1772238459718,-525.33,6.53e-05,2]
[406854984,1772238459749,-525.33,6.696e-05,2]
[406854985,1772238467982,199.86039727,6.8e-05,2]
[406854986,1772238468015,251.87556771,6.8e-05,2]
[406854987,1772238468057,296.82548856,6.8e-05,2]
[406854988,1772238468095,422.53115014,6.8e-05,2]
[406854989,1772238506767,6727.59739632,6.769e-05,2]
[406854990,1772238506789,10000.01,6.769e-05,2]
[406854991,1772238539335,-1200.0,6.768e-05,2]
[406854992,1772238539691,-9701.33,6.769e-05,2]
[406854993,1772238542392,-10000.01,6.769e-05,2]
[406854994,1772238542681,-10000.01,6.769e-05,2]
[406854995,1772238542895,-1401.47739632,6.769e-05,2]
[406854996,1772238542925,-7197.05520736,6.769e-05,2]
[406854998,1772238601837,10000.01,6.73e-05,2]
[406854999,1772238601862,10000.01,6.73e-05,2]
[406855000,1772238601884,10000.01,6.73e-05,2]
[406855012,1772238632139,-300.0,6.729e-05,2]
[406855013,1772238632150,-163.32343304,6.73e-05,2]
[406855014,1772238632175,-44.67656696,6.73e-05,2]
[406855015,1772238632184,-450.51440139,6.73e-05,2]
[406855016,1772238632196,-258.87161287,6.73e-05,2]
[406855017,1772238632207,-3710.00000002,6.73e-05,2]
[406855018,1772238632219,-40175.25398572,6.73e-05,2]
[406855019,1772238632228,-5000.0,6.765e-05,2]
[406855020,1772238632238,-197.47,6.8e-05,2]
[406855021,1772238632247,-3290.10126,6.83e-05,2]
[406855022,1772238632256,-525.33,6.863e-05,2]
[406855023,1772238632265,-701.67367054,6.873e-05,2]
[406855024,1772238632279,-2825.47358325,6.881e-05,2]
[406855025,1772238632288,-151.0,6.897e-05,2]
[406855026,1772238632298,-300.0,6.899e-05,2]
[406855027,1772238632307,-300.0,6.899e-05,2]
[406855028,1772238632318,-908.14124188,6.899e-05,2]
[406855029,1772238632330,-291.85875812,6.899e-05,2]
[406855030,1772238632339,-150.0,6.899e-05,2]
[406855031,1772238632349,-1497287.01371317,6.9e-05,2]
[406855032,1772238632359,-2700.0,6.9e-05,2]
[406855033,1772238632369,-613.73156102,6.9e-05,2]
[406855034,1772238632379,-935.31241748,6.9e-05,2]
[406855035,1772238632388,-241.26843898,6.9e-05,2]
[406855036,1772238632397,-1629.86017581,6.9e-05,2]
[406855037,1772238632406,-895.1342104,6.9e-05,2]
[406855038,1772238632415,-250.0,6.997e-05,2]
[406855039,1772238632424,-250.0,6.998e-05,2]
[406855040,1772238632433,-500.0,6.999e-05,2]
[406855041,1772238632442,-500.0,6.999e-05,2]
[406855042,1772238632451,-500.0,6.999e-05,2]
[406855043,1772238632460,-500.0,6.999e-05,2]
[406855044,1772238632468,-500.0,6.999e-05,2]
[406855045,1772238632477,-596.62876454,6.999e-05,2]
[406855046,1772238632486,-500.0,6.999e-05,2]
[406855047,1772238632495,-500.0,6.999e-05,2]
[406855048,1772238632504,-500.0,6.999e-05,2]
[406855049,1772238632513,-500.0,6.999e-05,2]
[406855050,1772238632522,-500.0,6.999e-05,2]
[406855051,1772238632532,-500.0,6.999e-05,2]
[406855052,1772238632541,-500.0,6.999e-05,2]
[406855053,1772238632550,-500.0,6.999e-05,2]
[406855054,1772238632559,-500.0,6.999e-05,2]
[406855055,1772238632569,-500.0,6.999e-05,2]
[406855056,1772238632578,-500.0,6.999e-05,2]
[406855057,1772238632588,-500.0,6.999e-05,2]
[406855058,1772238632598,-500.0,6.999e-05,2]
[406855059,1772238632608,-500.0,6.999e-05,2]
[406855060,1772238632618,-500.0,6.999e-05,2]
[406855061,1772238632628,-500.0,6.999e-05,2]
[406855062,1772238632638,-500.0,6.999e-05,2]
[406855063,1772238632648,-500.0,6.999e-05,2]
[406855064,1772238632658,-500.0,6.999e-05,2]
[406855065,1772238632668,-500.0,6.999e-05,2]
[406855066,1772238632678,-500.0,6.999e-05,2]
[406855067,1772238632687,-500.0,6.999e-05,2]
[406855068,1772238632697,-250.0,6.999e-05,2]
[406855069,1772238632706,-500.0,6.999e-05,2]
[406855070,1772238632719,-500.0,6.999e-05,2]
[406855071,1772238632729,-500.0,6.999e-05,2]
[406855072,1772238632740,-338.70159803,6.999e-05,2]
[406855073,1772238632749,-500.0,6.999e-05,2]
[406855074,1772238632760,-500.0,6.999e-05,2]
[406855075,1772238632771,-177.40319606,6.999e-05,2]
[406855076,1772238632780,-436.32428468,6.999e-05,2]
[406855077,1772238632789,-500.0,6.999e-05,2]
[406855078,1772238632799,-338.70159803,6.999e-05,2]
[406855079,1772238632808,-500.0,6.999e-05,2]
[406855080,1772238632817,-338.70159803,6.999e-05,2]
[406855081,1772238632826,-677.67,6.999e-05,2]
[406855082,1772238632836,-4100.0,7e-05,2]
[406855083,1772238632845,-525.33,7.029e-05,2]
[406855084,1772238632855,-159.0,7.051e-05,2]
[406855085,1772238632864,-9999.99,7.059e-05,2]
[406855086,1772238632874,-4999.99,7.059e-05,2]
[406855087,1772238632883,-9999.99,7.059e-05,2]
[406855088,1772238632893,-516.15,7.059e-05,2]
[406855089,1772238632902,-150.99,7.059e-05,2]
[406855090,1772238632912,-9999.99,7.059e-05,2]
[406855091,1772238632921,-2706.71,7.059e-05,2]
[406855092,1772238632934,-1186.29,7.059e-05,2]
[406855093,1772238632953,-1613.95,7.059e-05,2]
[406855094,1772238632973,-210.0,7.065e-05,2]
[406855095,1772238632987,-285.0,7.079e-05,2]
[406855096,1772238632997,-438.0,7.093e-05,2]
[406855097,1772238633006,-500.0,7.099e-05,2]
[406855098,1772238633015,-500.0,7.099e-05,2]
[406855099,1772238633025,-454.0741727,7.099e-05,2]
[406855100,1772238633034,-500.0,7.099e-05,2]
[406855101,1772238633044,-500.0,7.099e-05,2]
[406855102,1772238633054,-500.0,7.099e-05,2]
[406855103,1772238633063,-500.0,7.099e-05,2]
[406855104,1772238633072,-500.0,7.099e-05,2]
[406855105,1772238633081,-500.0,7.099e-05,2]
[406855106,1772238633091,-500.0,7.099e-05,2]
[406855107,1772238633100,-500.0,7.099e-05,2]
[406855108,1772238633110,-500.0,7.099e-05,2]
[406855109,1772238633120,-500.0,7.099e-05,2]
[406855110,1772238633129,-500.0,7.099e-05,2]
[406855111,1772238633139,-500.0,7.099e-05,2]
[406855112,1772238633149,-500.0,7.099e-05,2]
[406855113,1772238633158,-500.0,7.099e-05,2]
[406855114,1772238633167,-500.0,7.099e-05,2]
[406855115,1772238633177,-500.0,7.099e-05,2]
[406855116,1772238633186,-500.0,7.099e-05,2]
[406855117,1772238633195,-500.0,7.099e-05,2]
[406855118,1772238633205,-500.0,7.099e-05,2]
[406855119,1772238633214,-500.0,7.099e-05,2]
[406855120,1772238633223,-471.24465601,7.099e-05,2]
[406855121,1772238633232,-500.0,7.099e-05,2]
[406855122,1772238633242,-500.0,7.099e-05,2]
[406855123,1772238633252,-500.0,7.099e-05,2]
[406855124,1772238633261,-500.0,7.099e-05,2]
[406855125,1772238633273,-500.0,7.099e-05,2]
[406855126,1772238633282,-500.0,7.099e-05,2]
[406855127,1772238633292,-500.0,7.099e-05,2]
[406855128,1772238633301,-500.0,7.099e-05,2]
[406855129,1772238633310,-500.0,7.099e-05,2]
[406855130,1772238633322,-500.0,7.099e-05,2]
[406855131,1772238633331,-500.0,7.099e-05,2]
[406855132,1772238633341,-500.0,7.099e-05,2]
[406855133,1772238633350,-500.0,7.099e-05,2]
[406855134,1772238633360,-500.0,7.099e-05,2]
[406855135,1772238633370,-500.0,7.099e-05,2]
[406855136,1772238633379,-500.0,7.099e-05,2]
[406855137,1772238633389,-500.0,7.099e-05,2]
[406855138,1772238633398,-500.0,7.099e-05,2]
[406855139,1772238633407,-500.0,7.099e-05,2]
[406855140,1772238633416,-500.0,7.099e-05,2]
[406855141,1772238633425,-500.0,7.099e-05,2]
[406855142,1772238633435,-500.0,7.099e-05,2]
[406855143,1772238633444,-250.0,7.099e-05,2]
[406855144,1772238633454,-500.0,7.099e-05,2]
[406855145,1772238633464,-500.0,7.099e-05,2]
[406855146,1772238633474,-161.92412969,7.099e-05,2]
[406855147,1772238633483,-500.0,7.099e-05,2]
[406855148,1772238633492,-500.0,7.099e-05,2]
[406855149,1772238633502,-500.0,7.099e-05,2]
[406855150,1772238633511,-338.70159803,7.099e-05,2]
[406855151,1772238633521,-500.0,7.099e-05,2]
[406855152,1772238633533,-500.0,7.099e-05,2]
[406855153,1772238633543,-5920.37,7.099e-05,2]
[406855154,1772238633552,-9999.99,7.099e-05,2]
[406855155,1772238633561,-299.99,7.099e-05,2]
[406855156,1772238633571,-999.99,7.099e-05,2]
[406855157,1772238633580,-3839.7,7.099e-05,2]
[406855158,1772238633590,-7577.47,7.099e-05,2]
[406855159,1772238633599,-9999.99,7.099e-05,2]
[406855160,1772238633609,-311.65,7.1e-05,2]
[406855161,1772238633623,-9999.99,7.1e-05,2]
[406855162,1772238633633,-499.99,7.1e-05,2]
[406855163,1772238633642,-150.99,7.1e-05,2]
[406855164,1772238633651,-7664.4,7.1e-05,2]
[406855165,1772238633660,-1519.0,7.106e-05,2]
[406855166,1772238633670,-234.0,7.107e-05,2]
[406855167,1772238633679,-325.0,7.12e-05,2]
[406855168,1772238633688,-405.0,7.121e-05,2]
[406855169,1772238633697,-193.0,7.136e-05,2]
[406855170,1772238633707,-393.0,7.15e-05,2]
[406855171,1772238633716,-433.0,7.164e-05,2]
[406855172,1772238633725,-677.67,7.273e-05,2]
[406855173,1772238633734,-420.0,7.402e-05,2]
[406855174,1772238633744,-5000.0,7.403e-05,2]
[406855175,1772238633753,-677.67,7.547e-05,2]
[406855176,1772238633763,-5000.0,7.549e-05,2]
[406855177,1772238633784,-300.0,7.589e-05,2]
[406855178,1772238633805,-1680.0,7.589e-05,2]
[406855179,1772238633819,-255.0,7.589e-05,2]
[406855180,1772238633829,-3399.07,7.671e-05,2]
[406855181,1772238633840,-250.0,7.697e-05,2]
[406855182,1772238633852,-677.67,7.821e-05,2]
[406855183,1772238633862,-528.38,7.889e-05,2]
[406855184,1772238633873,-41013.141306,7.945e-05,2]
[406855185,1772238633883,-677.67,8.095e-05,2]
[406855186,1772238633892,-1852.42,8.133e-05,2]
[406855187,1772238633902,-587.0,8.142e-05,2]
[406855188,1772238633912,-11827.355654,8.178e-05,2]
[406855189,1772238633921,-1500.0,8.201e-05,2]
[406855190,1772238633935,-150.0,8.219e-05,2]
[406855191,1772238633944,-150.0,8.219e-05,2]
[406855192,1772238633953,-150.0,8.219e-05,2]
[406855193,1772238633963,-150.0,8.219e-05,2]
[406855194,1772238633973,-151.43177859,8.219e-05,2]
[406855195,1772238633982,-187.94413648,8.219e-05,2]
[406855196,1772238633993,-150.0,8.219e-05,2]
[406855197,1772238634004,-500.0,8.219e-05,2]
[406855198,1772238634015,-150.0,8.219e-05,2]
[406855199,1772238634025,-162.43895648,8.219e-05,2]
[406855200,1772238634036,-150.0,8.219e-05,2]
[406855201,1772238634045,-150.0,8.219e-05,2]
[406855202,1772238634055,-150.0,8.219e-05,2]
[406855203,1772238634068,-150.0,8.219e-05,2]
[406855204,1772238634078,-150.0,8.219e-05,2]
[406855205,1772238634089,-150.0,8.219e-05,2]
[406855206,1772238634100,-150.0,8.219e-05,2]
[406855207,1772238634110,-150.0,8.219e-05,2]
[406855208,1772238634119,-150.0,8.219e-05,2]
[406855209,1772238634129,-150.0,8.219e-05,2]
[406855210,1772238634140,-157.13116755,8.219e-05,2]
[406855211,1772238634150,-150.0,8.219e-05,2]
[406855212,1772238634159,-214.50715051,8.219e-05,2]
[406855213,1772238634169,-150.0,8.219e-05,2]
[406855214,1772238634180,-271.681836,8.219e-05,2]
[406855215,1772238634191,-500.0,8.219e-05,2]
[406855216,1772238634202,-150.0,8.274e-05,2]
[406855217,1772238634213,-150.0,8.274e-05,2]
[406855218,1772238634224,-156.7972859,8.274e-05,2]
[406855219,1772238634234,-500.0,8.274e-05,2]
[406855220,1772238634243,-150.0,8.274e-05,2]
[406855221,1772238634254,-153.00872056,8.274e-05,2]
[406855222,1772238634265,-150.0,8.274e-05,2]
[406855223,1772238634279,-150.0,8.274e-05,2]
[406855224,1772238634289,-150.0,8.274e-05,2]
[406855225,1772238634302,-150.0,8.274e-05,2]
[406855226,1772238634315,-150.0,8.274e-05,2]
[406855227,1772238634324,-150.0,8.274e-05,2]
[406855228,1772238634337,-150.0,8.274e-05,2]
[406855229,1772238634352,-369.84961923,8.329e-05,2]
[406855230,1772238634362,-200.0,8.329e-05,2]
[406855231,1772238634373,-150.0,8.329e-05,2]
[406855232,1772238634382,-200.0,8.329e-05,2]
[406855233,1772238634395,-150.0,8.329e-05,2]
[406855234,1772238634405,-150.0,8.329e-05,2]
[406855235,1772238634414,-200.0,8.329e-05,2]
[406855236,1772238634423,-153.42435722,8.329e-05,2]
[406855237,1772238634432,-2351.0,8.348e-05,2]
[406855238,1772238634441,-196.22786094,8.348e-05,2]
[406855239,1772238634544,-236.77213906,8.348e-05,2]
[406855240,1772238634553,-677.6937247,8.369e-05,2]
[406855241,1772238634563,-283.94722391,8.383e-05,2]
[406855242,1772238634572,-200.0,8.383e-05,2]
[406855243,1772238634581,-150.0,8.383e-05,2]
[406855244,1772238634590,-150.0,8.438e-05,2]
[406855245,1772238634599,-203.07873168,8.493e-05,2]
[406855246,1772238634608,-500.0,8.493e-05,2]
[406855247,1772238634617,-500.0,8.673e-05,2]
[406855248,1772238634625,-226.36271147,8.673e-05,2]
[406855249,1772238634635,-501.75629018,8.673e-05,2]
[406855250,1772238634645,-500.0,8.673e-05,2]
[406855251,1772238634654,-500.0,8.673e-05,2]
[406855252,1772238634664,-163.07132872,8.673e-05,2]
[406855253,1772238634674,-500.0,8.673e-05,2]
[406855254,1772238634683,-500.0,8.673e-05,2]
[406855255,1772238634693,-500.36500922,8.673e-05,2]
[406855256,1772238634702,-500.0,8.673e-05,2]
[406855257,1772238634712,-500.0,8.673e-05,2]
[406855258,1772238634721,-341.49183462,8.673e-05,2]
[406855259,1772238634731,-500.0,8.673e-05,2]
[406855260,1772238634740,-500.0,8.673e-05,2]
[406855261,1772238634749,-493.59037081,8.673e-05,2]
[406855262,1772238634759,-500.0,8.673e-05,2]
[406855263,1772238634768,-164.6078994,8.673e-05,2]
[406855264,1772238634778,-500.18684223,8.673e-05,2]
[406855265,1772238634787,-500.0,8.673e-05,2]
[406855266,1772238634796,-501.02670572,8.673e-05,2]
[406855267,1772238634805,-500.0,8.673e-05,2]
[406855268,1772238634815,-500.0,8.673e-05,2]
[406855269,1772238634825,-500.0,8.673e-05,2]
[406855270,1772238634835,-500.0,8.673e-05,2]
[406855271,1772238634843,-500.0,8.673e-05,2]
[406855272,1772238634853,-500.0,8.673e-05,2]
[406855273,1772238634862,-500.0,8.673e-05,2]
[406855274,1772238634871,-500.0,8.673e-05,2]
[406855275,1772238634880,-500.0,8.673e-05,2]
[406855276,1772238634889,-503.00758239,8.673e-05,2]
[406855277,1772238634898,-500.86041338,8.673e-05,2]
[406855278,1772238634907,-500.0,8.673e-05,2]
[406855279,1772238634916,-500.0,8.673e-05,2]
[406855280,1772238634925,-12869.72,8.727e-05,2]
[406855281,1772238634935,-500.0,8.767e-05,2]
[406855282,1772238634949,-288.61,8.814e-05,2]
[406855283,1772238634962,-500.0,8.837e-05,2]
[406855284,1772238634972,-339.602295,8.901e-05,2]
[406855285,1772238634981,-250.0,8.985e-05,2]
[406855286,1772238634993,-500.0,9.041e-05,2]
[406855287,1772238635007,-3292.0,9.183e-05,2]
[406855288,1772238635017,-736.0,9.183e-05,2]